bitfinex/quotes_BTCUSD_20250826
["timestamp","ask_amount","ask_price","bid_price","bid_amount"]
[1756166704851,5.54536087,110050.0,110040.0,0.00104785]
[1756166705076,5.54536087,110050.0,110040.0,4.785e-05]
[1756166705325,5.54936087,110050.0,110040.0,4.785e-05]
[1756166705548,5.55336087,110050.0,110040.0,0.00104785]
[1756166708187,5.54936087,110050.0,110040.0,4.785e-05]
[1756166708608,5.55336087,110050.0,110040.0,4.785e-05]
[1756166709176,5.54936087,110050.0,110040.0,4.785e-05]
[1756166709387,5.55336087,110050.0,110040.0,4.785e-05]
[1756166709799,5.74416989,110050.0,110040.0,4.785e-05]
[1756166710029,0.52181818,110000.0,109990.0,0.07273275]
[1756166710246,5.52385818,110000.0,109950.0,0.07253275]
[1756166710451,0.1909959,109950.0,109930.0,0.00319]
[1756166710666,0.18193395,109930.0,109920.0,0.14241275]
[1756166710873,0.18193395,109930.0,109920.0,0.32148275]
[1756166711297,0.1819174,109940.0,109920.0,0.50357641]
[1756166711513,0.1819174,109940.0,109930.0,0.00319]
[1756166711514,0.52191849,109940.0,109930.0,0.00319]
[1756166711737,0.34,109940.0,109930.0,0.00531]
[1756166711947,0.52190144,109950.0,109930.0,0.00531]
[1756166712153,0.1819174,109940.0,109930.0,0.00212]
[1756166712367,0.34,109950.0,109930.0,0.18405346]
[1756166712568,0.18190086,109950.0,109940.0,0.17368]
[1756166712776,0.52188464,109960.0,109940.0,0.35990444]
[1756166713015,0.34,109960.0,109950.0,0.25728462]
[1756166713224,0.34,109960.0,109950.0,0.07523]
[1756166713497,0.01788905,109970.0,109950.0,0.25713086]
[1756166713756,5.0,109960.0,109950.0,0.25394086]
[1756166713954,5.0,109960.0,109950.0,0.42770086]
[1756166714193,5.18188432,109960.0,109950.0,0.2458]
[1756166714403,0.1909701,109980.0,109950.0,0.43289086]
[1756166714616,5.5,109970.0,109960.0,0.18905081]
[1756166714826,5.0,109970.0,109960.0,0.36087432]
[1756166715031,5.18186778,109970.0,109950.0,0.07392]
[1756166715247,5.18188432,109960.0,109950.0,0.06992]
[1756166715464,5.18188432,109960.0,109950.0,0.24652]
[1756166715465,0.18288432,109960.0,109950.0,0.24652]
[1756166715664,0.18288432,109960.0,109950.0,0.24852]
[1756166715821,0.18188432,109960.0,109950.0,0.24556789]
[1756166716275,0.18188432,109960.0,109950.0,0.24756789]
[1756166716703,0.18188432,109960.0,109950.0,0.07396789]
[1756166716903,5.18276432,109960.0,109950.0,0.24548789]
[1756166717370,0.20101429,109970.0,109950.0,0.24960789]
[1756166717599,5.84,109960.0,109950.0,0.43069875]
[1756166717802,0.52188432,109960.0,109950.0,0.24368789]
[1756166718045,0.52288432,109960.0,109950.0,0.25399789]
[1756166718256,0.52376432,109960.0,109950.0,0.07296789]
[1756166718462,0.52376432,109960.0,109950.0,0.24468789]
[1756166718463,5.52276432,109960.0,109950.0,0.24468789]
[1756166718760,5.52288432,109960.0,109950.0,0.24980789]
[1756166718983,0.18288432,109960.0,109950.0,0.43489875]
[1756166719406,0.54001429,109970.0,109950.0,0.43089875]
[1756166719614,5.0,109960.0,109950.0,0.43089875]
[1756166719828,5.01423022,109960.0,109950.0,0.43089875]
[1756166720047,0.01423022,109960.0,109950.0,0.43089875]
[1756166720316,0.01423022,109960.0,109950.0,0.43189875]
[1756166720580,0.18185189,109980.0,109960.0,0.18187573]
[1756166720791,0.02516112,109980.0,109970.0,0.36237112]
[1756166721021,0.52516112,109980.0,109970.0,0.36009778]
[1756166721245,0.02261792,109980.0,109970.0,0.36009778]
[1756166721471,0.0052076,109980.0,109970.0,0.44698253]
[1756166721691,0.18489358,110040.0,110010.0,0.18178514]
[1756166721918,0.18489358,110040.0,110020.0,0.17627231]
[1756166721919,5.6817686,110030.0,110020.0,0.17627231]
[1756166722044,0.20694742,110030.0,110020.0,0.17627231]
[1756166722275,0.18178512,110020.0,110010.0,0.06996]
[1756166722478,0.20696394,110020.0,110010.0,0.24292]
[1756166722675,0.21002394,110020.0,110010.0,0.06896]
[1756166722889,0.21206394,110020.0,110010.0,0.24300789]
[1756166723094,0.21206394,110020.0,110010.0,4.789e-05]
[1756166723295,5.55206394,110020.0,110010.0,4.789e-05]
[1756166723727,0.34,110000.0,109990.0,0.23528]
[1756166723929,0.18184788,109990.0,109980.0,0.06996]
[1756166724135,0.2070267,109990.0,109980.0,0.24388]
[1756166724426,0.02517882,109990.0,109980.0,0.42573124]
[1756166725224,0.02520334,109990.0,109980.0,0.42773124]
[1756166725448,0.02520334,109990.0,109980.0,0.25381124]
[1756166725650,0.02520334,109990.0,109980.0,0.58702874]
[1756166725854,0.02520334,109990.0,109980.0,0.41322874]
[1756166726069,0.18477585,110020.0,109990.0,0.18181831]
[1756166726295,0.22934545,110020.0,110000.0,0.35457818]
[1756166726500,0.18180165,110010.0,110000.0,0.35457818]
[1756166726713,0.02520235,110010.0,110000.0,0.35457818]
[1756166726952,0.207004,110010.0,110000.0,0.35457818]
[1756166727160,0.02520235,110010.0,110000.0,0.35357818]
[1756166727365,0.211984,110010.0,109990.0,0.19091004]
[1756166727578,0.211984,110010.0,110000.0,0.17356]
[1756166727791,0.211984,110010.0,110000.0,0.35537818]
[1756166727994,0.211984,110010.0,110000.0,0.17356]
[1756166728253,0.211984,110010.0,109990.0,0.19091004]
[1756166728467,0.18480818,110000.0,109990.0,0.35531471]
[1756166728680,0.21005244,110000.0,109990.0,0.35531471]
[1756166728943,0.20706244,110000.0,109990.0,0.35531471]
[1756166729169,0.04466154,110000.0,109990.0,0.35531471]
[1756166729414,0.68183471,109990.0,109980.0,0.002]
[1756166729659,5.57778967,109990.0,109980.0,0.002]
[1756166729886,0.52185124,109980.0,109970.0,4.789e-05]
[1756166730116,5.5778062,109980.0,109970.0,4.789e-05]
[1756166731451,0.5728262,109980.0,109970.0,0.17428789]
[1756166731666,0.5500955,109980.0,109970.0,0.17428789]
[1756166731875,0.02824426,109980.0,109970.0,0.35615567]
[1756166732152,0.52826416,109980.0,109970.0,0.35828567]
[1756166732365,5.7101154,109980.0,109970.0,0.17428789]
[1756166732584,0.2101154,109980.0,109970.0,0.17428789]
[1756166732826,0.2150954,109980.0,109970.0,0.17416789]
[1756166733036,0.5530954,109980.0,109970.0,0.00404789]
[1756166733243,0.57249664,109980.0,109970.0,0.17816789]
[1756166733487,5.57149664,109980.0,109970.0,0.00104789]
[1756166733760,5.57781293,109980.0,109970.0,4.789e-05]
[1756166733956,5.75473293,109980.0,109970.0,0.00604789]
[1756166734169,5.77911818,109980.0,109970.0,0.00604789]
[1756166734373,5.77711818,109980.0,109970.0,0.00604789]
[1756166734596,5.78111375,109980.0,109970.0,0.00604789]
[1756166734811,5.77711375,109980.0,109970.0,0.00604789]
[1756166735057,5.7602732,109980.0,109970.0,0.00604789]
[1756166735281,5.77711375,109980.0,109970.0,0.00604789]
[1756166735730,5.77611375,109980.0,109970.0,4.789e-05]
[1756166735985,5.77711375,109980.0,109970.0,0.00404789]
[1756166736211,5.60319375,109980.0,109970.0,0.00404789]
[1756166736437,0.5758285,109980.0,109970.0,0.17577789]
[1756166736656,0.2285133,109980.0,109970.0,0.17577789]
[1756166736868,0.2334933,109980.0,109970.0,4.789e-05]
[1756166737087,5.0539782,109980.0,109970.0,0.00617789]
[1756166737308,0.02626082,109980.0,109970.0,0.18804567]
[1756166737527,0.01784055,109980.0,109970.0,0.18804567]
[1756166737773,0.01784055,109980.0,109970.0,0.18904567]
[1756166737984,0.01784055,109980.0,109970.0,0.19004567]
[1756166738229,0.01784055,109980.0,109970.0,0.36192567]
[1756166738439,0.01684055,109980.0,109970.0,0.18504567]
[1756166738655,0.01684055,109980.0,109970.0,0.35892567]
[1756166738871,0.01784055,109980.0,109970.0,0.36592567]
[1756166739321,0.01684055,109980.0,109970.0,0.36092567]
[1756166739539,0.01784055,109980.0,109970.0,0.36792567]
[1756166739855,0.01784055,109980.0,109970.0,0.36592567]
[1756166740421,0.01784055,109980.0,109970.0,0.36492567]
[1756166740422,0.02627516,109980.0,109970.0,0.36492567]
[1756166740659,0.2081264,109980.0,109970.0,0.01117789]
[1756166740895,0.2081264,109980.0,109970.0,0.18288789]
[1756166741119,0.04571077,109980.0,109970.0,0.36688567]
[1756166741346,0.02627516,109980.0,109970.0,0.36688567]
[1756166741768,0.2111164,109980.0,109970.0,0.18288789]
[1756166742670,0.02627516,109980.0,109970.0,0.36688567]
[1756166742899,0.2081264,109980.0,109970.0,0.36688567]
[1756166743566,0.2081264,109980.0,109970.0,0.18288789]
[1756166743783,0.19969179,109980.0,109970.0,0.19091567]
[1756166744007,0.55313401,109980.0,109970.0,0.00904789]
[1756166744276,0.57256878,109980.0,109970.0,0.00904789]
[1756166744498,5.57256878,109980.0,109970.0,0.00904789]
[1756166744913,5.57889324,109980.0,109970.0,0.00904789]
[1756166745130,5.57256878,109980.0,109970.0,0.00904789]
[1756166745342,5.57789359,109980.0,109970.0,0.00204789]
[1756166745556,5.57789359,109980.0,109970.0,0.00804789]
[1756166745763,5.60327884,109980.0,109970.0,0.00804789]
[1756166746176,5.63495446,109980.0,109970.0,0.00204789]
[1756166746388,5.63495446,109980.0,109970.0,0.00604789]
[1756166746599,5.60327884,109980.0,109970.0,0.00604789]
[1756166747019,5.60327435,109980.0,109970.0,0.00404789]
[1756166747476,5.60327435,109980.0,109970.0,0.00504789]
[1756166747691,5.63494997,109980.0,109970.0,0.00104789]
[1756166748181,5.63494997,109980.0,109970.0,4.789e-05]
[1756166748413,5.63494997,109980.0,109920.0,0.48413993]
[1756166748414,0.18193395,109930.0,109900.0,0.26352518]
[1756166748650,0.18195583,109920.0,109910.0,0.24396]
[1756166748873,0.18195583,109920.0,109910.0,0.24609]
[1756166748874,0.19882148,109920.0,109910.0,0.24609]
[1756166749107,0.19882148,109920.0,109910.0,0.42805706]
[1756166749749,0.19882148,109920.0,109910.0,0.24609]
[1756166749975,0.21823754,109920.0,109910.0,0.24597]
[1756166750191,0.2182257,109920.0,109910.0,0.42793706]
[1756166750409,0.19880964,109920.0,109910.0,0.42793706]
[1756166750623,0.19980431,109920.0,109910.0,0.43293706]
[1756166750840,0.01785381,109920.0,109910.0,0.43293706]
[1756166751313,0.19979615,109920.0,109910.0,0.24884]
[1756166751532,0.19979615,109920.0,109910.0,0.25397]
[1756166751741,0.19979615,109920.0,109910.0,0.43593706]
[1756166751994,0.01784565,109920.0,109910.0,0.43793706]
[1756166752215,0.01786151,109920.0,109910.0,0.52482181]
[1756166752444,0.001,109920.0,109910.0,0.52482181]
[1756166753368,0.01787158,109920.0,109910.0,0.52482181]
[1756166753596,0.01687158,109920.0,109910.0,0.51982181]
[1756166753834,0.22243866,109950.0,109920.0,0.19102084]
[1756166754055,0.1819174,109940.0,109920.0,0.19102084]
[1756166754284,0.05106113,109940.0,109930.0,0.35762395]
[1756166754526,0.02319292,109940.0,109930.0,0.4465087]
[1756166754750,0.08138997,109970.0,109960.0,0.18188432]
[1756166754751,0.05665893,109970.0,109960.0,0.18188432]
[1756166754982,0.02786667,109970.0,109960.0,0.42556432]
[1756166755254,0.00843335,109970.0,109960.0,0.42556432]
[1756166755467,0.19810887,109980.0,109970.0,0.18186778]
[1756166755689,0.23230358,109980.0,109970.0,0.18086778]
[1756166756116,0.23230358,109980.0,109970.0,0.18091549]
[1756166756542,0.23537558,109980.0,109970.0,4.771e-05]
[1756166757182,0.00195229,109970.0,109960.0,0.42456432]
[1756166757390,0.00195229,109970.0,109960.0,0.42470809]
[1756166757621,0.21540798,109980.0,109970.0,0.18186778]
[1756166757844,0.0484429,109980.0,109970.0,0.18286778]
[1756166758061,0.0484429,109980.0,109970.0,0.18186778]
[1756166758510,0.0484429,109980.0,109970.0,0.18286778]
[1756166758727,0.23336414,109980.0,109970.0,0.35678778]
[1756166758995,0.23336414,109980.0,109970.0,0.18186778]
[1756166759213,0.0484429,109980.0,109970.0,0.35578778]
[1756166759439,0.0484429,109980.0,109970.0,0.35774778]
[1756166759676,0.0484464,109980.0,109970.0,0.35774778]
[1756166760564,0.04211373,109980.0,109970.0,0.44263253]
[1756166760801,0.0242824,110000.0,109990.0,0.18183471]
[1756166761025,0.5242824,110010.0,110000.0,0.18181818]
[1756166761251,0.5242824,110010.0,109990.0,0.60737946]
[1756166761252,0.75454427,110010.0,109990.0,0.60737946]
[1756166761480,0.60511915,110010.0,110000.0,0.35565818]
[1756166761702,0.54845819,110010.0,110000.0,0.35565818]
[1756166762160,0.54845819,110010.0,110000.0,0.44254293]
[1756166762389,0.54845765,110010.0,110000.0,0.4436867]
[1756166762622,0.50344327,110010.0,110000.0,0.4436867]
[1756166763057,0.0242824,110050.0,110040.0,0.18175209]
[1756166763286,0.0257864,110050.0,110040.0,0.88103684]
[1756166763536,0.0242824,110080.0,110070.0,0.18170255]
[1756166763768,0.0004,110090.0,110080.0,0.18168604]
[1756166763995,0.01984525,110090.0,110080.0,0.18168604]
[1756166764224,0.01984525,110090.0,110080.0,0.19016237]
[1756166764453,0.02032164,110090.0,110080.0,0.19016237]
[1756166764672,0.18254593,110090.0,110080.0,0.00847633]
[1756166764895,0.18561593,110090.0,110080.0,0.36388237]
[1756166765124,0.00087639,110090.0,110080.0,0.36384237]
[1756166765341,0.18254593,110090.0,110070.0,0.25165871]
[1756166765549,0.18768593,110090.0,110080.0,0.1746]
[1756166765780,0.14089225,110100.0,110080.0,0.0178964]
[1756166766021,0.14089225,110100.0,110080.0,0.001]
[1756166766022,6.02373954,110090.0,110080.0,0.001]
[1756166766245,5.52373954,110090.0,110080.0,0.002]
[1756166766732,0.52171906,110060.0,110050.0,0.01688028]
[1756166766950,0.18177409,110030.0,110010.0,0.25172165]
[1756166767166,0.1817686,110030.0,110010.0,0.33334448]
[1756166767416,0.1817686,110030.0,110020.0,0.17356]
[1756166767662,0.18176923,110030.0,110020.0,0.17352]
[1756166767885,0.18178512,110020.0,110010.0,0.32425322]
[1756166768102,0.18176923,110030.0,110020.0,0.00047639]
[1756166768355,0.18176923,110030.0,110020.0,0.17407639]
[1756166768580,0.1817686,110030.0,110020.0,0.1783787]
[1756166768798,0.1869086,110030.0,110020.0,0.17415639]
[1756166769021,0.5269086,110030.0,110020.0,0.17815639]
[1756166769478,5.5269086,110030.0,110020.0,0.17815639]
[1756166769695,5.5269086,110030.0,110020.0,0.00447639]
[1756166769923,5.5269086,110030.0,110020.0,0.00647639]
[1756166770357,5.5269086,110030.0,110020.0,0.00247639]
[1756166770626,5.5279086,110030.0,110020.0,0.00047639]
[1756166770869,5.71907762,110030.0,110020.0,0.00047639]
[1756166771113,0.52181818,110000.0,109990.0,0.24352]
[1756166771350,0.52185124,109980.0,109970.0,0.14245275]
[1756166771580,0.52392124,109980.0,109970.0,0.31623652]
[1756166772020,0.52185124,109980.0,109970.0,0.31623652]
[1756166772252,0.18184845,109990.0,109970.0,0.5033143]
[1756166772483,0.52184845,109990.0,109970.0,0.5033143]
[1756166772699,0.52184845,109990.0,109980.0,0.18185124]
[1756166773156,0.18185124,109980.0,109970.0,0.31623652]
[1756166773375,0.18185124,109980.0,109970.0,0.31607652]
[1756166773803,0.18392124,109980.0,109970.0,0.31607652]
[1756166774017,0.18185124,109980.0,109970.0,0.4999743]
[1756166774232,0.18185124,109980.0,109970.0,0.31607652]
[1756166774497,0.18699124,109980.0,109970.0,0.31607652]
[1756166774923,0.18592124,109980.0,109970.0,0.31607652]
[1756166775181,0.18385124,109980.0,109970.0,0.31607652]
[1756166775389,0.18385124,109980.0,109970.0,0.31707652]
[1756166775822,0.52899124,109980.0,109970.0,0.00114377]
[1756166776037,0.52899124,109980.0,109970.0,0.17430377]
[1756166776463,0.54576957,109980.0,109970.0,0.17430377]
[1756166776895,0.54269957,109980.0,109970.0,0.17430377]
[1756166777112,0.52592124,109980.0,109970.0,0.17430377]
[1756166777329,0.52899124,109980.0,109970.0,0.17430377]
[1756166777547,0.52592124,109980.0,109970.0,0.17430377]
[1756166777775,0.342,109980.0,109970.0,0.35617155]
[1756166777991,0.342,109980.0,109970.0,0.36138155]
[1756166778202,0.002,109980.0,109970.0,0.36138155]
[1756166778427,0.18385124,109980.0,109970.0,0.00114377]
[1756166778635,0.18385124,109980.0,109970.0,0.17442377]
[1756166778903,0.18899124,109980.0,109970.0,0.00114377]
[1756166779142,0.52899124,109980.0,109970.0,0.17434377]
[1756166779365,0.5457749,109980.0,109970.0,0.17434377]
[1756166779598,0.5457749,109980.0,109970.0,0.00114377]
[1756166779824,5.5457749,109980.0,109970.0,0.00114377]
[1756166780045,5.56000656,109980.0,109970.0,0.00114377]
[1756166780525,5.56001119,109980.0,109970.0,0.00014377]
[1756166780971,5.55801119,109980.0,109970.0,0.00014377]
[1756166781189,5.55802226,109980.0,109970.0,0.00014377]
[1756166781409,0.55802226,109980.0,109970.0,0.00014377]
[1756166781858,0.55495226,109980.0,109970.0,0.00014377]
[1756166782080,0.5386506,109980.0,109970.0,0.00014377]
[1756166782294,0.52392124,109980.0,109970.0,0.17330377]
[1756166782500,0.54073692,109980.0,109970.0,0.17330377]
[1756166782714,0.54380692,109980.0,109970.0,0.00014377]
[1756166782925,5.54380692,109980.0,109970.0,0.17330377]
[1756166783144,5.54380692,109980.0,109970.0,0.00114377]
[1756166783568,5.54380692,109980.0,109970.0,0.00014377]
[1756166783998,5.54380692,109980.0,109970.0,0.00114377]
[1756166784222,5.54380692,109980.0,109970.0,0.00014377]
[1756166786308,0.53866692,109980.0,109970.0,0.00316377]
[1756166786531,0.52185124,109980.0,109970.0,0.00316377]
[1756166786949,0.52185124,109980.0,109970.0,0.00416377]
[1756166787166,0.52185124,109980.0,109970.0,0.00216377]
[1756166787377,0.52185124,109980.0,109970.0,0.00543711]
[1756166787590,0.52185124,109980.0,109970.0,0.17891711]
[1756166787802,0.52185124,109980.0,109970.0,0.35851155]
[1756166788015,0.1818366,109990.0,109970.0,0.35851155]
[1756166788016,0.22183061,110000.0,109980.0,0.18185124]
[1756166788223,0.22442853,110000.0,109990.0,0.17244]
[1756166788487,0.19864646,110000.0,109990.0,0.17673293]
[1756166788684,0.18183471,109990.0,109980.0,0.32434399]
[1756166788913,0.18183471,109990.0,109980.0,0.49880399]
[1756166789826,0.19090547,110010.0,109990.0,0.18283471]
[1756166790053,0.19864627,110010.0,110000.0,0.3585109]
[1756166790270,0.53864665,110010.0,110000.0,0.1714]
[1756166790488,0.18183471,109990.0,109980.0,0.06996]
[1756166790719,0.18183471,109990.0,109980.0,0.24412]
[1756166790916,0.18183229,110000.0,109980.0,0.43099124]
[1756166791145,0.19866585,110000.0,109980.0,0.42799124]
[1756166791366,0.2154291,110000.0,109990.0,0.18183471]
[1756166791581,0.01683356,110000.0,109990.0,0.18680471]
[1756166791793,0.34,110010.0,110000.0,0.18181818]
[1756166792004,0.53863586,110010.0,110000.0,0.17228]
[1756166792211,0.18181818,110000.0,109990.0,0.18183471]
[1756166792427,0.52180165,110010.0,109990.0,0.35617471]
[1756166792636,0.35683336,110010.0,110000.0,0.18181818]
[1756166793052,0.18181818,110000.0,109990.0,0.35515471]
[1756166793272,0.52180165,110010.0,109990.0,0.35717471]
[1756166793493,0.18181818,110000.0,109990.0,0.00202]
[1756166793742,0.18181818,110000.0,109990.0,0.17518]
[1756166793966,0.52180165,110010.0,109990.0,0.35701471]
[1756166794180,0.53863414,110010.0,110000.0,0.18181818]
[1756166794393,0.53863414,110010.0,109990.0,0.35894471]
[1756166794602,0.18181818,110000.0,109990.0,0.35599471]
[1756166794812,0.52180165,110010.0,109990.0,0.35801471]
[1756166795020,0.35683766,110010.0,110000.0,0.3562109]
[1756166795235,0.01683766,110010.0,110000.0,0.35595818]
[1756166795448,0.01683766,110010.0,110000.0,0.35890818]
[1756166796105,0.01683766,110010.0,110000.0,0.18678818]
[1756166796326,0.01683766,110010.0,110000.0,0.35878818]
[1756166796558,0.01683766,110010.0,110000.0,0.35978818]
[1756166796775,0.01683766,110010.0,110000.0,0.35878818]
[1756166796993,0.01683766,110010.0,110000.0,0.35866818]
[1756166797238,0.01683766,110010.0,110000.0,0.19178818]
[1756166797496,0.01683766,110010.0,110000.0,0.36366818]
[1756166798207,0.01683766,110010.0,110000.0,0.71925293]
[1756166798426,0.01683766,110010.0,110000.0,0.79178568]
[1756166798635,0.01683766,110010.0,110000.0,0.79478568]
[1756166799272,0.01422377,110020.0,110010.0,0.18180165]
[1756166799497,0.21592057,110020.0,110010.0,0.24152]
[1756166799725,0.22638444,110020.0,110010.0,0.24164]
[1756166800396,0.23272515,110020.0,110010.0,0.24156]
[1756166800622,0.23272515,110020.0,110010.0,0.00014377]
[1756166800835,5.23272515,110020.0,110010.0,0.17274377]
[1756166801069,5.23272515,110020.0,110010.0,0.00014377]
[1756166801365,5.57272515,110020.0,110010.0,0.00014377]
[1756166801576,5.57272515,110020.0,110010.0,0.00114377]
[1756166802210,5.57272515,110020.0,110010.0,0.18494542]
[1756166802211,5.56972515,110020.0,110010.0,0.18494542]
[1756166802422,0.56973142,110020.0,110010.0,0.18494542]
[1756166802645,0.56973142,110020.0,110010.0,0.00114377]
[1756166803303,0.56973142,110020.0,110010.0,0.00014377]
[1756166803518,0.57273142,110020.0,110010.0,0.17138377]
[1756166803956,0.57273142,110020.0,110010.0,0.00014377]
[1756166804167,0.57273142,110020.0,110010.0,0.17122377]
[1756166805219,0.57273142,110020.0,110010.0,0.00014377]
[1756166805437,0.55550765,110020.0,110010.0,0.17118377]
[1756166805866,0.55850765,110020.0,110010.0,0.17118377]
[1756166806321,0.55349765,110020.0,110010.0,0.17320377]
[1756166806540,0.55349765,110020.0,110010.0,0.35500542]
[1756166806541,0.03171253,110020.0,110010.0,0.35500542]
[1756166806757,0.03171253,110020.0,110010.0,0.35795542]
[1756166807192,0.01691042,110020.0,110010.0,0.35795542]
[1756166807653,0.01691042,110020.0,110010.0,0.18691542]
[1756166807877,0.01691042,110020.0,110010.0,0.35484542]
[1756166808100,0.19869554,110020.0,110010.0,0.18396542]
[1756166808321,0.19869554,110020.0,110010.0,0.17604377]
[1756166808535,0.19869554,110020.0,110010.0,0.17804377]
[1756166808761,0.20372681,110020.0,110010.0,0.17294377]
[1756166808938,0.20372681,110020.0,110010.0,0.17594377]
[1756166809228,0.55795005,110020.0,110010.0,0.17582377]
[1756166809904,0.55795005,110020.0,110010.0,0.17574377]
[1756166810354,0.55294005,110020.0,110010.0,0.35656542]
[1756166810575,0.55294005,110020.0,110010.0,0.36251542]
[1756166810576,0.03115493,110020.0,110010.0,0.36251542]
[1756166810793,0.03115493,110020.0,110010.0,0.35951542]
[1756166810979,0.21495005,110020.0,110010.0,0.00214377]
[1756166811249,0.21795005,110020.0,110010.0,0.17162377]
[1756166811494,0.03115493,110020.0,110010.0,0.35444542]
[1756166811721,0.03962229,110020.0,110010.0,0.36139542]
[1756166811949,0.22140741,110020.0,110010.0,0.35844542]
[1756166812173,0.22140741,110020.0,110010.0,0.17062377]
[1756166812440,0.22140741,110020.0,110010.0,0.35544542]
[1756166812684,0.22140741,110020.0,110010.0,0.18496542]
[1756166812875,0.22140741,110020.0,110010.0,0.35230542]
[1756166813153,0.56641741,110020.0,110010.0,0.17234377]
[1756166813365,0.5521937,110020.0,110010.0,0.17334377]
[1756166813580,0.5521937,110020.0,110010.0,0.00314377]
[1756166813808,0.5521937,110020.0,110010.0,0.00214377]
[1756166814046,0.5521937,110020.0,110010.0,0.17534377]
[1756166814270,0.5521937,110020.0,110010.0,0.17234377]
[1756166814486,0.5521937,110020.0,110010.0,0.00014377]
[1756166814703,5.5521937,110020.0,110010.0,0.00214377]
[1756166814919,5.72870628,110020.0,110010.0,0.00214377]
[1756166815138,5.72870628,110020.0,109970.0,0.06992]
[1756166815139,0.52186194,109990.0,109970.0,0.06992]
[1756166815369,0.18565855,109980.0,109970.0,0.24]
[1756166815592,0.52395124,109980.0,109970.0,0.24]
[1756166816458,0.52395124,109980.0,109970.0,0.242]
[1756166817319,0.34,109980.0,109970.0,0.42904778]
[1756166817545,0.52185124,109980.0,109970.0,0.24412]
[1756166817768,0.54111885,109980.0,109970.0,0.002]
[1756166817994,0.54111885,109980.0,109970.0,0.17484]
[1756166818210,0.54111885,109980.0,109970.0,0.17284]
[1756166818432,0.55806847,109980.0,109970.0,0.17584]
[1756166818858,0.55806751,109980.0,109970.0,0.17584]
[1756166819082,0.55302751,109980.0,109970.0,0.17284]
[1756166819529,0.53607885,109980.0,109970.0,0.17196]
[1756166819746,0.53607885,109980.0,109970.0,0.17296]
[1756166820420,5.54111885,109980.0,109970.0,0.001]
[1756166820662,5.72778614,109980.0,109970.0,0.001]
[1756166820885,5.55806614,109980.0,109970.0,0.001]
[1756166821793,5.56654078,109980.0,109970.0,0.001]
[1756166822058,5.56754078,109980.0,109970.0,0.001]
[1756166822556,0.18186778,109970.0,109960.0,0.0024174]
[1756166822788,5.19881507,109970.0,109960.0,0.17002385]
[1756166823014,0.53881507,109970.0,109960.0,0.35630172]
[1756166823283,0.01694729,109970.0,109960.0,0.42962092]
[1756166823713,0.18285124,109980.0,109960.0,0.42962092]
[1756166823919,0.19979498,109980.0,109970.0,0.18186778]
[1756166824149,0.19979498,109980.0,109970.0,0.18398778]
[1756166824374,0.19879498,109980.0,109970.0,0.18704778]
[1756166824639,0.19879498,109980.0,109970.0,0.18398778]
[1756166824865,0.19879498,109980.0,109970.0,0.00212]
[1756166825035,0.19879498,109980.0,109970.0,0.00518]
[1756166825469,0.18185124,109980.0,109970.0,0.00312]
[1756166825683,0.52185124,109980.0,109970.0,0.17276]
[1756166826974,0.52185124,109980.0,109970.0,0.17376]
[1756166827194,0.52689124,109980.0,109970.0,0.002]
[1756166827634,0.54383171,109980.0,109970.0,0.002]
[1756166827924,0.54112087,109980.0,109970.0,0.002]
[1756166828372,0.19608087,109980.0,109970.0,0.00212]
[1756166829034,0.53608087,109980.0,109970.0,0.00212]
[1756166829271,0.18186778,109970.0,109960.0,0.16962385]
[1756166829493,0.52690778,109970.0,109960.0,0.16946385]
[1756166829745,0.52186778,109970.0,109960.0,0.16946385]
[1756166829959,0.52186778,109970.0,109960.0,0.35880172]
[1756166830168,0.34,109970.0,109960.0,0.35652817]
[1756166830389,0.01422963,109980.0,109970.0,0.18186778]
[1756166830609,0.01422963,109980.0,109970.0,0.27393253]
[1756166830820,0.18180165,110010.0,110000.0,0.18180876]
[1756166831022,0.18178512,110020.0,110000.0,0.42642876]
[1756166831233,0.18178512,110020.0,110010.0,0.18407417]
[1756166831430,0.18178512,110020.0,110010.0,0.18698165]
[1756166831641,0.18178512,110020.0,110010.0,0.35336165]
[1756166832070,0.18180165,110010.0,110000.0,0.25177818]
[1756166832287,0.18180165,110010.0,110000.0,0.42321818]
[1756166832528,0.18178512,110020.0,110010.0,0.18180165]
[1756166832752,0.18178512,110020.0,110000.0,0.42415818]
[1756166832978,0.18178512,110020.0,110010.0,0.18619417]
[1756166833199,0.18178512,110020.0,110010.0,0.18392165]
[1756166833424,0.18682512,110020.0,110000.0,0.25277818]
[1756166833636,0.18178512,110020.0,110010.0,0.35112165]
[1756166833865,0.18178512,110020.0,110010.0,0.35424165]
[1756166834092,0.18682512,110020.0,110010.0,0.002]
[1756166834312,0.18682512,110020.0,110010.0,0.1712]
[1756166834477,0.18682512,110020.0,110010.0,0.002]
[1756166834707,0.18682512,110020.0,110010.0,0.17116]
[1756166835287,0.19093371,110030.0,110010.0,0.35296165]
[1756166835496,0.18178512,110020.0,110010.0,0.35196165]
[1756166835709,0.19387371,110030.0,110010.0,0.35408165]
[1756166835929,0.21927469,110030.0,110010.0,0.35408165]
[1756166836361,0.21927444,110030.0,110010.0,0.35408165]
[1756166836570,0.36540073,110030.0,110020.0,0.18405743]
[1756166836776,0.20763807,110040.0,110020.0,0.18390512]
[1756166837004,0.23318039,110040.0,110030.0,0.4239086]
[1756166837203,0.56409279,110040.0,110030.0,0.4229686]
[1756166837403,0.22619279,110040.0,110030.0,0.23904]
[1756166837850,0.56409279,110040.0,110030.0,0.4229286]
[1756166838061,0.55762628,110040.0,110030.0,0.2538486]
[1756166838264,0.55662628,110040.0,110030.0,0.4229286]
[1756166838434,0.5708467,110040.0,110030.0,0.4229286]
[1756166838780,0.5698467,110040.0,110030.0,0.4229286]
[1756166838981,0.5748867,110040.0,110030.0,0.06996]
[1756166839234,0.58334939,110040.0,110030.0,0.23892]
[1756166839451,0.58334939,110040.0,110030.0,0.23884]
[1756166839855,0.58334939,110040.0,110030.0,0.06996]
[1756166840279,0.58334939,110040.0,110030.0,0.23876]
[1756166840703,0.18178512,110020.0,110010.0,0.25172165]
[1756166840910,0.18472257,110030.0,110010.0,0.42048165]
[1756166841155,0.18178512,110020.0,110010.0,0.25384165]
[1756166841372,0.18472257,110030.0,110010.0,0.42252165]
[1756166841591,0.21586481,110030.0,110010.0,0.42252165]
[1756166841809,0.18178512,110020.0,110010.0,0.25172165]
[1756166842066,0.18178512,110020.0,110010.0,0.42128165]
[1756166842313,0.18682512,110020.0,110010.0,0.23944]
[1756166842524,0.18388512,110020.0,110010.0,0.23944]
[1756166842954,0.18682512,110020.0,110010.0,0.23944]
[1756166843168,0.18178512,110020.0,110010.0,0.24156]
[1756166843388,0.18388512,110020.0,110010.0,0.2384]
[1756166843633,0.18388512,110020.0,110010.0,0.23832]
[1756166844052,0.18388512,110020.0,110010.0,0.42112165]
[1756166844294,0.52682512,110020.0,110010.0,0.001]
[1756166844522,0.52682512,110020.0,110010.0,0.16932]
[1756166844745,0.52682512,110020.0,110010.0,0.16948]
[1756166845191,0.52682512,110020.0,110010.0,0.17048]